fUST/lending_fUST_20240703
["ID","MTS","AMOUNT","RATE_DAILY","PERIOD"]
[330916504,1719940449769,208.7303948,9.999e-05,2]
[330916505,1719940449801,401.7459215,9.999e-05,2]
[330916506,1719940455065,517.53063591,9.999e-05,2]
[330916507,1719940458133,157.57380656,9.999e-05,2]
[330916508,1719940460147,165.46519434,9.999e-05,2]
[330916509,1719940467711,179.583121,0.0001212,2]
[330916510,1719940468997,293.07017019,0.0001212,2]
[330916511,1719940473858,163.46229724,9.999e-05,2]
[330916512,1719940484171,155.25547477,0.0001,2]
[330916513,1719940492558,516.36262805,0.0001212,2]
[330916514,1719940522676,523.09668254,9.999e-05,2]
[330916515,1719940534592,159.35965211,9.999e-05,2]
[330916516,1719940574411,286.45866748,9.999e-05,2]
[330916517,1719940583672,208.3392434,9.999e-05,2]
[330916518,1719940607148,489.1904409,0.0001212,2]
[330916519,1719940649969,706.22316216,9.999e-05,2]
[330916520,1719940662052,1478.75364957,0.00013985,2]
[330916521,1719940697867,1313.011853,0.0001212,2]
[330916522,1719940712571,24900.0,0.00013087,2]
[330916524,1719940949324,431.1151401,0.00013087,2]
[330916525,1719940973563,259.39180364,9.999e-05,2]
[330916526,1719941009309,153.82,0.000224,31]
[330916527,1719941009368,153.82,0.000224,31]
[330916528,1719941009546,153.82,0.000224,31]
[330916529,1719941009585,153.82,0.000224,31]
[330916530,1719941123184,3000.0,0.00013699,2]
[330916531,1719941131821,284.48652942,9.999e-05,2]
[330916532,1719941204189,-300.0,0.00014082,2]
[330916533,1719941204210,-179.92668839,0.00014082,2]
[330916534,1719941275061,1282.7601426,0.00013086,2]
[330916535,1719941300516,-181.50970077,0.00014082,2]
[330916536,1719941300543,-300.0,0.00014082,2]
[330916537,1719941300570,-185.78757123,0.00014082,2]
[330916538,1719941300602,-114.21242877,0.00014082,2]
[330916539,1719941300630,-553.08484323,0.00014083,2]
[330916540,1719941300663,-94.15515677,0.00014083,2]
[330916541,1719941300689,-74.98712528,0.00014083,2]
[330916542,1719941325657,-697.37200852,0.00014083,2]
[330916543,1719941325708,-697.37200852,0.00014083,2]
[330916544,1719941325771,-203.82315191,0.00014083,2]
[330916545,1719941347449,1329.9192046,0.00013983,2]
[330916546,1719941350487,-300.0,0.00014082,2]
[330916547,1719941350518,-300.0,0.00014082,2]
[330916548,1719941350703,-129.3433519,0.00014083,2]
[330916549,1719941350739,-703.60488885,0.00014083,2]
[330916550,1719941375563,-758.00231671,0.00014083,2]
[330916551,1719941375615,-453.91766525,0.00014083,2]
[330916552,1719941400521,-782.24071635,0.00014083,2]
[330916553,1719941400580,-526.04937777,0.00014083,2]
[330916554,1719941418665,250.0,0.00013086,2]
[330916904,1719941438361,-300.0,0.00014082,2]
[330916907,1719941438372,-173.22755933,0.00014082,2]
[330917203,1719941441846,-0.77244067,0.00014082,2]
[330917206,1719941441856,-388.30062494,0.00014083,2]
[330917382,1719941443560,-500.0,0.00014083,2]
[330917385,1719941443572,-232.02937506,0.00014083,2]
[330917387,1719941443588,-5646.6,0.00014083,2]
[330917389,1719941443598,-500.0,0.00014083,2]
[330917391,1719941443607,-500.0,0.00014083,2]
[330917393,1719941443617,-1783.93,0.00014083,2]
[330917395,1719941443626,-500.0,0.00014083,2]
[330917397,1719941443636,-500.0,0.00014083,2]
[330917399,1719941443645,-447.31625931,0.00014083,2]
[330917403,1719941443678,-367.88374069,0.00014083,2]
[330917405,1719941443688,-1001.51029395,0.00014083,2]
[330917429,1719941443912,-1365.92970605,0.00014083,2]
[330917431,1719941443921,-2166.21,0.00014083,2]
[330917433,1719941443931,-1409.58,0.00014083,2]
[330917435,1719941443940,-570.09,0.00014083,2]
[330917437,1719941443949,-520.48,0.00014083,2]
[330917439,1719941443959,-814.51,0.00014083,2]
[330917441,1719941443968,-16709.02,0.00014083,2]
[330917443,1719941443977,-4221.25,0.00014083,2]
[330917445,1719941443986,-2050.31826198,0.00014083,2]
[330919181,1719941475531,155.93798497,0.00013983,2]
[330919182,1719941502189,239.56788705,9.999e-05,2]
[330919183,1719941599788,661.12832609,9.999e-05,2]
[330919184,1719941610757,153.9,0.000224,31]
[330919185,1719941610797,153.9,0.000224,31]
[330919186,1719941610849,153.9,0.000224,31]
[330919187,1719941610898,153.9,0.000224,31]
[330919188,1719941650831,306.48765772,9.999e-05,2]
[330919189,1719941663036,212.62,0.00010959,2]
[330919190,1719941663899,765.1959052,0.00013981,2]
[330919191,1719941674907,167.4837934,0.00013085,2]
[330919192,1719941684270,195.57704168,9.999e-05,2]
[330919196,1719941741493,221.35002266,0.00013983,2]
[330919217,1719941798111,1195.18784511,0.00013982,2]
[330919226,1719941972343,271.62,0.0002,30]
[330919227,1719941975251,533.17721936,0.00013825,2]
[330919228,1719941980663,24900.0,0.00013084,2]
[330919229,1719941987335,271.62,0.0002,30]
[330919232,1719942037351,154.86836189,0.0002,30]
[330919233,1719942044730,186.67873937,9.999e-05,2]
[330919234,1719942078439,1073.35933796,0.00013982,2]
[330919236,1719942303833,939.18942068,0.00013981,2]
[330919241,1719942485716,5286.34479944,0.00013916,2]
[330919242,1719942513284,-300.0,0.00014079,2]
[330919243,1719942513325,-300.0,0.00014079,2]
[330919244,1719942513356,-102.86624156,0.0001408,2]
[330919245,1719942513400,-397.13375844,0.0001408,2]
[330919246,1719942513430,-155.39108854,0.0001408,2]
[330919247,1719942515027,661.12832609,9.999e-05,2]
[330919248,1719942534140,845.91446989,0.0001398,2]
[330919249,1719942538402,-345.92280504,0.0001408,2]
[330919250,1719942538431,-382.05125829,0.0001408,2]
[330919251,1719942538467,-122.33538658,0.0001408,2]
[330919252,1719942538500,-464.01114366,0.0001408,2]
[330919253,1719942563383,-300.0,0.00014079,2]
[330919254,1719942563413,-300.0,0.00014079,2]
[330919255,1719942563444,-35.98885634,0.0001408,2]
[330919256,1719942563474,-118.27161886,0.0001408,2]
[330919257,1719942563518,-385.04280704,0.0001408,2]
[330919258,1719942563549,-18.4346201,0.0001408,2]
[330919259,1719942588453,-485.08203318,0.0001408,2]
[330919260,1719942588499,-292.33320007,0.0001408,2]
[330919261,1719942588535,-207.66679993,0.0001408,2]
[330919262,1719942588565,-441.40422605,0.0001408,2]
[330919329,1719942638594,-300.0,0.00014079,2]
[330919331,1719942638604,-58.59577395,0.0001408,2]
[330919332,1719942638614,-501.43587116,0.0001408,2]
[330919334,1719942638623,-468.71766668,0.0001408,2]
[330919336,1719942638632,-135.33570242,0.0001408,2]
[330919338,1719942638645,-364.66429758,0.0001408,2]
[330919340,1719942638654,-500.0,0.0001408,2]
[330919342,1719942638663,-500.0,0.0001408,2]
[330919343,1719942638672,-500.0,0.0001408,2]
[330919344,1719942638682,-501.31276133,0.0001408,2]
[330919345,1719942638691,-500.0,0.0001408,2]
[330919346,1719942638699,-170.58736382,0.0001408,2]
[330919347,1719942638709,-459.91574297,0.0001408,2]
[330919349,1719942638859,-40.08425703,0.0001408,2]
[330919350,1719942638869,-504.7917541,0.0001408,2]
[330919351,1719942638878,-500.0,0.0001408,2]
[330919352,1719942638887,-330.18593137,0.0001408,2]
[330919353,1719942638913,-169.81406863,0.0001408,2]
[330919354,1719942638922,-500.0,0.0001408,2]
[330919355,1719942638931,-569.41310301,0.0001408,2]
[330919356,1719942638940,-107.27282836,0.0001408,2]
[330919357,1719942638952,-392.72717164,0.0001408,2]
[330919358,1719942638961,-312.66450343,0.0001408,2]
[330919359,1719942638972,-187.33549657,0.0001408,2]
[330919360,1719942638982,-395.08204182,0.0001408,2]
[330919361,1719942638994,-110.19951979,0.0001408,2]
[330919362,1719942639003,-500.0,0.0001408,2]
[330919363,1719942639013,-500.0,0.0001408,2]
[330919364,1719942639022,-528.33980179,0.0001408,2]
[330919365,1719942639032,-503.65680828,0.0001408,2]
[330919366,1719942639042,-500.0,0.0001408,2]
[330919367,1719942639054,-483.26824092,0.0001408,2]
[330919368,1719942639066,-16.73175908,0.0001408,2]
[330919369,1719942639076,-505.36214824,0.0001408,2]
[330919370,1719942639086,-500.0,0.0001408,2]
[330919371,1719942639096,-541.76558373,0.0001408,2]
[330919372,1719942639106,-514.10618178,0.0001408,2]
[330919373,1719942639116,-500.0,0.0001408,2]
[330919374,1719942639125,-619.52779434,0.0001408,2]
[330919375,1719942639135,-502.63543064,0.0001408,2]
[330919376,1719942639145,-519.89,0.0001408,2]
[330919377,1719942639155,-911.96,0.0001408,2]
[330919378,1719942639164,-500.0,0.0001408,2]
[330919379,1719942639174,-500.0,0.0001408,2]
[330919380,1719942639183,-500.0,0.0001408,2]
[330919381,1719942639193,-500.0,0.0001408,2]
[330919382,1719942639202,-500.0,0.0001408,2]
[330919383,1719942639212,-500.0,0.0001408,2]
[330919384,1719942639221,-500.0,0.0001408,2]
[330919385,1719942639231,-502.67570938,0.0001408,2]
[330919386,1719942639240,-505.16206578,0.0001408,2]
[330919387,1719942639250,-500.0,0.0001408,2]
[330919388,1719942639260,-502.40244211,0.0001408,2]
[330919389,1719942639269,-292.5536328,0.0001408,2]
[330919419,1719942641246,-207.4463672,0.0001408,2]
[330919421,1719942641255,-103.75908493,0.0001408,2]
[330919437,1719942641458,-396.24091507,0.0001408,2]
[330919438,1719942641467,-500.0,0.0001408,2]
[330919439,1719942641476,-500.0,0.0001408,2]
[330919440,1719942641486,-500.0,0.0001408,2]
[330919441,1719942641495,-500.0,0.0001408,2]
[330919442,1719942641505,-500.0,0.0001408,2]
[330919443,1719942641517,-822.86,0.0001408,2]
[330919444,1719942641527,-500.0,0.0001408,2]
[330919445,1719942641537,-31.63562831,0.0001408,2]
[330919517,1719942646841,-468.36437169,0.0001408,2]
[330919518,1719942646851,-826.06996009,0.0001408,2]
[330919519,1719942646863,-520.430295,0.0001408,2]
[330919520,1719942646875,-813.91974491,0.0001408,2]
[330919521,1719942646885,-500.0,0.0001408,2]
[330919522,1719942646897,-500.0,0.0001408,2]
[330919523,1719942646906,-620.27,0.0001408,2]
[330919524,1719942646916,-16012.81,0.0001408,2]
[330919525,1719942646925,-1975.26,0.0001408,2]
[330919526,1719942646935,-500.0,0.0001408,2]
[330919527,1719942646945,-3112.45,0.0001408,2]
[330919528,1719942646954,-500.0,0.0001408,2]
[330919529,1719942646963,-500.0,0.0001408,2]
[330919530,1719942646972,-1073.65,0.0001408,2]
[330919531,1719942646982,-3179.18540411,0.00014081,2]
[330919532,1719942646991,-500.0,0.00014081,2]
[330919533,1719942647000,-500.0,0.00014081,2]
[330919534,1719942647010,-955.34,0.00014081,2]
[330919535,1719942647019,-500.0,0.00014081,2]
[330919536,1719942647028,-963.7,0.00014081,2]
[330919537,1719942647038,-954.65,0.00014081,2]
[330919538,1719942647048,-1133.84,0.00014081,2]
[330919539,1719942647059,-500.0,0.00014081,2]
[330919540,1719942647068,-511.32,0.00014081,2]
[330919541,1719942647077,-500.0,0.00014081,2]
[330919542,1719942647088,-721.65,0.00014081,2]
[330919543,1719942647098,-500.0,0.00014081,2]
[330919544,1719942647107,-1309.68,0.00014081,2]
[330919545,1719942647117,-650.75,0.00014081,2]
[330919546,1719942647126,-188.74,0.00014081,2]
[330919547,1719942647136,-500.0,0.00014081,2]
[330919548,1719942647146,-302.6097567,0.00014081,2]
[330919549,1719942647155,-500.0,0.00014081,2]
[330919550,1719942647164,-500.0,0.00014081,2]
[330919551,1719942647173,-500.0,0.00014081,2]
[330919552,1719942647183,-500.0,0.00014081,2]
[330919553,1719942647192,-500.0,0.00014081,2]
[330919554,1719942647201,-500.0,0.00014081,2]
[330919555,1719942647211,-500.0,0.00014081,2]
[330919556,1719942647220,-500.0,0.00014081,2]
[330919557,1719942647229,-500.0,0.00014081,2]
[330919558,1719942647239,-500.0,0.00014081,2]
[330919559,1719942647248,-3292.75,0.00014081,2]
[330919560,1719942647257,-500.0,0.00014081,2]
[330919561,1719942647267,-533.47,0.00014081,2]
[330919562,1719942647276,-500.0,0.00014081,2]
[330919563,1719942647286,-500.0,0.00014081,2]
[330919564,1719942647295,-500.0,0.00014081,2]
[330919565,1719942647306,-500.0,0.00014081,2]
[330919566,1719942647314,-500.0,0.00014081,2]
[330919567,1719942647323,-500.0,0.00014081,2]
[330919568,1719942647333,-500.0,0.00014081,2]
[330919569,1719942647344,-1873.33,0.00014081,2]
[330919570,1719942647353,-500.0,0.00014081,2]
[330919571,1719942647362,-4594.93,0.00014081,2]
[330919572,1719942647372,-678.96,0.00014081,2]
[330919573,1719942647381,-2352.02,0.00014081,2]
[330919574,1719942647391,-500.0,0.00014081,2]
[330919575,1719942647401,-1350.84,0.00014081,2]
[330919576,1719942647411,-186.349614,0.00014081,2]
[330919577,1719942647421,-780.57,0.00014081,2]
[330919578,1719942647432,-151.0,0.00014081,2]
[330919579,1719942647442,-742.08,0.00014081,2]
[330919580,1719942647452,-506.09970133,0.00014081,2]
[330919581,1719942647462,-4045.37,0.00014081,2]
[330919582,1719942647472,-503.97901866,0.00014081,2]
[330919583,1719942647481,-500.0,0.00014081,2]
[330919584,1719942647491,-539.69634998,0.00014081,2]
[330919585,1719942647501,-500.0,0.00014081,2]
[330919586,1719942647510,-500.0,0.00014081,2]
[330919587,1719942647525,-504.12,0.00014081,2]
[330919588,1719942647535,-500.0,0.00014081,2]
[330919589,1719942647544,-500.0,0.00014081,2]
[330919590,1719942647555,-500.0,0.00014081,2]
[330919591,1719942647565,-500.0,0.00014081,2]
[330919592,1719942647575,-500.0,0.00014081,2]
[330919593,1719942647584,-5411.32,0.00014081,2]
[330919594,1719942647593,-500.0,0.00014081,2]
[330919595,1719942647605,-702.84,0.00014081,2]
[330919596,1719942647615,-1414.0,0.00014081,2]
[330919597,1719942647624,-6616.78,0.00014081,2]
[330919598,1719942647633,-500.0,0.00014081,2]
[330919599,1719942647643,-208.26186973,0.00014081,2]
[330919600,1719942647652,-6292.38,0.00014082,2]
[330919601,1719942647662,-4594.93,0.00014082,2]
[330919602,1719942647671,-4594.93,0.00014082,2]
[330919603,1719942647681,-500.0,0.00014082,2]
[330919604,1719942647691,-151.0,0.00014082,2]
[330919605,1719942647701,-1138.33,0.00014082,2]
[330919606,1719942647710,-707.19,0.00014082,2]
[330919607,1719942647722,-500.0,0.00014082,2]
[330919608,1719942647732,-15266.79904732,0.00014083,2]
[330919609,1719942647867,-500.0,0.00014083,2]
[330919610,1719942647876,-584.89,0.00014083,2]
[330919611,1719942647885,-500.0,0.00014083,2]
[330919612,1719942647895,-500.0,0.00014083,2]
[330919613,1719942647904,-500.0,0.00014083,2]
[330919614,1719942647914,-500.0,0.00014083,2]
[330919615,1719942647923,-500.0,0.00014083,2]
[330919616,1719942647933,-500.0,0.00014083,2]
[330919617,1719942647943,-500.0,0.00014083,2]
[330919618,1719942647953,-500.0,0.00014083,2]
[330919619,1719942647962,-357.89,0.00014083,2]
[330919620,1719942647972,-500.0,0.00014083,2]
[330919621,1719942647982,-507.50951461,0.00014083,2]
[330919622,1719942647991,-500.0,0.00014083,2]
[330919623,1719942648001,-572.78,0.00014083,2]
[330919624,1719942648010,-509.14129733,0.00014083,2]
[330919625,1719942648020,-491.04,0.00014083,2]
[330919626,1719942648030,-500.0,0.00014083,2]
[330919627,1719942648039,-500.0,0.00014083,2]
[330919628,1719942648048,-505.02118583,0.00014083,2]
[330919629,1719942648062,-500.0,0.00014083,2]
[330919630,1719942648071,-500.0,0.00014083,2]
[330919631,1719942648080,-500.0,0.00014083,2]
[330919632,1719942648088,-500.0,0.00014083,2]
[330919633,1719942648098,-322.32789883,0.00014083,2]
[330919634,1719942648107,-500.0,0.00014083,2]
[330919635,1719942648115,-614.72471346,0.00014083,2]
[330919636,1719942648124,-500.0,0.00014083,2]
[330919637,1719942648134,-505.86390228,0.00014083,2]
[330919638,1719942648143,-500.0,0.00014083,2]
[330919639,1719942648153,-500.0,0.00014083,2]
[330919640,1719942648162,-521.50379023,0.00014083,2]
[330919641,1719942648172,-500.0,0.00014083,2]
[330919642,1719942648181,-500.0,0.00014083,2]
[330919643,1719942648191,-504.48759325,0.00014083,2]
[330919644,1719942648200,-500.0,0.00014083,2]
[330919645,1719942648209,-523.45106126,0.00014083,2]
[330919646,1719942648219,-500.0,0.00014083,2]
[330919647,1719942648228,-500.0,0.00014083,2]
[330919648,1719942648238,-500.0,0.00014083,2]
[330919649,1719942648247,-500.48235782,0.00014083,2]
[330919650,1719942648257,-500.0,0.00014083,2]
[330919651,1719942648267,-500.0,0.00014083,2]
[330919652,1719942648276,-623.63,0.00014083,2]
[330919653,1719942648286,-500.0,0.00014083,2]
[330919654,1719942648295,-500.0,0.00014083,2]
[330919655,1719942648305,-500.0,0.00014083,2]
[330919656,1719942648315,-500.0,0.00014083,2]
[330919657,1719942648324,-504.2967368,0.00014083,2]
[330919658,1719942648334,-579.28,0.00014083,2]
[330919659,1719942648343,-502.28241713,0.00014083,2]
[330919660,1719942648352,-500.0,0.00014083,2]
[330919661,1719942648362,-500.0,0.00014083,2]
[330919662,1719942648371,-500.0,0.00014083,2]
[330919663,1719942648380,-897.6,0.00014083,2]
[330919664,1719942648390,-500.0,0.00014083,2]
[330919665,1719942648399,-501.44784496,0.00014083,2]
[330919666,1719942648409,-504.44099978,0.00014083,2]
[330919667,1719942648419,-500.0,0.00014083,2]
[330919668,1719942648428,-500.0,0.00014083,2]
[330919669,1719942648438,-500.0,0.00014083,2]
[330919670,1719942648448,-500.75397033,0.00014083,2]
[330919671,1719942648458,-500.0,0.00014083,2]
[330919672,1719942648467,-500.0,0.00014083,2]
[330919673,1719942648477,-500.0,0.00014083,2]
[330919674,1719942648487,-500.0,0.00014083,2]
[330919675,1719942648496,-549.63,0.00014083,2]
[330919676,1719942648505,-803.99,0.00014083,2]
[330919677,1719942648514,-275.89283289,0.00014083,2]
[330919678,1719942648528,-500.0,0.00014083,2]
[330919679,1719942648538,-500.0,0.00014083,2]
[330919680,1719942648547,-500.0,0.00014083,2]
[330919681,1719942648559,-500.0,0.00014083,2]
[330919682,1719942648570,-500.0,0.00014083,2]
[330919683,1719942648580,-162.252035,0.00014083,2]
[330919684,1719942648589,-162.252035,0.00014083,2]
[330919685,1719942648601,-162.252035,0.00014083,2]
[330919686,1719942648610,-162.252035,0.00014083,2]
[330919687,1719942648620,-162.252035,0.00014083,2]
[330919688,1719942648629,-162.252035,0.00014083,2]
[330919689,1719942648639,-162.252035,0.00014083,2]
[330919690,1719942648648,-162.252035,0.00014083,2]
[330919691,1719942648658,-162.252035,0.00014083,2]
[330919692,1719942648667,-162.252035,0.00014083,2]
[330919693,1719942648677,-296.05904329,0.00014083,2]
[330919694,1719942648686,-277.2548668,0.00014083,2]
[330919695,1719942648696,-501.94521052,0.00014083,2]
[330919696,1719942648706,-560.12,0.00014083,2]
[330919697,1719942648716,-500.0,0.00014083,2]
[330919698,1719942648725,-832.1,0.00014083,2]
[330919699,1719942648736,-500.0,0.00014083,2]
[330919700,1719942648745,-500.0,0.00014083,2]
[330919701,1719942648755,-500.0,0.00014083,2]
[330919702,1719942648764,-500.0,0.00014083,2]
[330919703,1719942648774,-500.0,0.00014083,2]
[330919704,1719942648783,-500.0,0.00014083,2]
[330919705,1719942648793,-500.0,0.00014083,2]
[330919706,1719942648805,-500.0,0.00014083,2]
[330919707,1719942648815,-500.0,0.00014083,2]
[330919708,1719942648824,-500.0,0.00014083,2]
[330919709,1719942648834,-500.0,0.00014083,2]
[330919710,1719942648844,-500.0,0.00014083,2]
[330919711,1719942648854,-500.0,0.00014083,2]
[330919712,1719942648863,-664.39,0.00014083,2]
[330919713,1719942648873,-500.0,0.00014083,2]
[330919714,1719942648882,-500.0,0.00014083,2]
[330919715,1719942648891,-500.0,0.00014083,2]
[330919716,1719942648901,-500.0,0.00014083,2]
[330919717,1719942648911,-151.0,0.00014083,2]
[330919718,1719942648921,-151.0,0.00014083,2]
[330919719,1719942648930,-151.0,0.00014083,2]
[330919720,1719942648939,-151.0,0.00014083,2]
[330919721,1719942648949,-151.0,0.00014083,2]
[330919722,1719942648959,-151.0,0.00014083,2]
[330919723,1719942648968,-151.0,0.00014083,2]
[330919724,1719942648977,-204.2,0.00014083,2]
[330919725,1719942648986,-554.25167022,0.00014083,2]
[330919726,1719942648996,-500.0,0.00014083,2]
[330919727,1719942649004,-783.84,0.00014083,2]
[330919728,1719942649015,-500.0,0.00014083,2]
[330919729,1719942649023,-500.0,0.00014083,2]
[330919730,1719942649034,-500.0,0.00014083,2]
[330919731,1719942649043,-151.0,0.00014083,2]
[330919732,1719942649054,-151.0,0.00014083,2]
[330919733,1719942649064,-151.0,0.00014083,2]
[330919734,1719942649073,-151.0,0.00014083,2]
[330919735,1719942649083,-151.0,0.00014083,2]
[330919736,1719942649092,-151.0,0.00014083,2]
[330919737,1719942649101,-500.0,0.00014083,2]
[330919738,1719942649111,-488.30154387,0.00014083,2]
[330919739,1719942649122,-642.88,0.00014083,2]
[330919740,1719942649132,-500.0,0.00014083,2]
[330919741,1719942649141,-500.0,0.00014083,2]
[330919742,1719942649150,-509.18546954,0.00014083,2]
[330919743,1719942649160,-500.0,0.00014083,2]
[330919744,1719942649169,-500.0,0.00014083,2]
[330919745,1719942649178,-500.0,0.00014083,2]
[330919746,1719942649188,-558.58,0.00014083,2]
[330919747,1719942649197,-500.0,0.00014083,2]
[330919748,1719942649206,-500.0,0.00014083,2]
[330919749,1719942649215,-500.0,0.00014083,2]
[330919750,1719942649224,-500.0,0.00014083,2]
[330919751,1719942649232,-500.0,0.00014083,2]
[330919752,1719942649242,-546.99,0.00014083,2]
[330919753,1719942649252,-500.0,0.00014083,2]
[330919754,1719942649262,-500.0,0.00014083,2]
[330919755,1719942649271,-500.0,0.00014083,2]
[330919756,1719942649280,-500.0,0.00014083,2]
[330919757,1719942649290,-673.34,0.00014083,2]
[330919758,1719942649299,-709.78,0.00014083,2]
[330919759,1719942649309,-500.0,0.00014083,2]
[330919760,1719942649319,-500.0,0.00014083,2]
[330919761,1719942649328,-541.72,0.00014083,2]
[330919762,1719942649337,-500.0,0.00014083,2]
[330919763,1719942649346,-151.0,0.00014083,2]
[330919764,1719942649356,-151.0,0.00014083,2]
[330919765,1719942649365,-984.28,0.00014083,2]
[330919766,1719942649374,-518.73,0.00014083,2]
[330919767,1719942649384,-501.44905527,0.00014083,2]
[330919768,1719942649394,-500.0,0.00014083,2]
[330919769,1719942649403,-508.76,0.00014083,2]
[330919770,1719942649412,-500.0,0.00014083,2]
[330919771,1719942649422,-500.0,0.00014083,2]
[330919772,1719942649433,-500.0,0.00014083,2]
[330919773,1719942649444,-537.66,0.00014083,2]
[330919774,1719942649453,-508.24751987,0.00014084,2]
[330919775,1719942649462,-500.0,0.00014084,2]
[330919776,1719942649471,-500.0,0.00014084,2]
[330919777,1719942649482,-162.252035,0.00014084,2]
[330919778,1719942649492,-162.252035,0.00014084,2]
[330919779,1719942649501,-162.252035,0.00014084,2]
[330919780,1719942649510,-162.252035,0.00014084,2]
[330919781,1719942649522,-151.0,0.00014084,2]
[330919782,1719942649532,-151.0,0.00014084,2]
[330919783,1719942649541,-151.0,0.00014084,2]
[330919784,1719942649550,-151.0,0.00014084,2]
[330919785,1719942649562,-4594.93,0.00014084,2]
[330919786,1719942649571,-162.252035,0.00014085,2]
[330919787,1719942649580,-162.252035,0.00014085,2]
[330919788,1719942649589,-8707.98,0.00014085,2]
[330919789,1719942649598,-4433.82,0.00014085,2]
[330919790,1719942649608,-2135.18618859,0.00014085,2]
[330919791,1719942649623,-4620.22381141,0.00014085,2]
[330919792,1719942649632,-72.9062583,0.00014085,2]
[330919793,1719942649643,-78.0937417,0.00014085,2]
[330919794,1719942649652,-151.0,0.00014085,2]
[330919795,1719942649661,-151.0,0.00014085,2]
[330919796,1719942649671,-225.642595,0.00014085,2]
[330919797,1719942649680,-788.4,0.00014085,2]
[330919798,1719942649689,-706.95,0.00014085,2]
[330919799,1719942649698,-865.48,0.00014085,2]
[330919800,1719942649707,-162.252035,0.00014087,2]
[330919801,1719942649717,-162.252035,0.00014087,2]
[330919802,1719942649727,-788.77990238,0.00014087,2]
[330919803,1719942679753,3612.40868586,0.00013979,2]
[330919804,1719942769597,797.48770639,0.00013987,2]
[330919806,1719942970200,4999.97206,0.00013747,2]
[330919807,1719943034638,521.06468489,9.999e-05,7]
[330919810,1719943113221,933.34700406,9.999e-05,2]
[330919811,1719943124775,1160.46938729,0.0001212,2]
[330919812,1719943129327,531.11088939,9.999e-05,2]
[330919813,1719943145434,207.76713087,0.0001212,2]
[330919814,1719943170685,242.06738357,9.999e-05,2]
[330919815,1719943183310,179.77136505,9.999e-05,2]
[330919816,1719943193070,24900.0,0.00013081,2]
[330919817,1719943207804,239.63706292,9.999e-05,2]
[330919818,1719943216235,943.62156708,0.00013932,2]
[330919819,1719943218301,150.0,0.00013731,2]
[330919820,1719943225637,410.75,0.00010959,2]
[330919821,1719943225797,179.39487695,0.0001212,2]
[330919822,1719943237993,208.98551847,0.0001212,2]
[330919823,1719943245376,661.30955175,9.999e-05,2]
[330919824,1719943249848,318.0694556,9.999e-05,2]
[330919825,1719943252719,723.95900882,9.999e-05,2]
[330919826,1719943266972,204.11,0.00010959,2]
[330919827,1719943277504,340.19,0.00010959,2]
[330919828,1719943288040,425.24,0.00010959,2]
[330919829,1719943298539,472.49,0.00010959,2]
[330919830,1719943309070,492.17,0.00010959,2]
[330919831,1719943319596,492.18,0.00010959,2]
[330919832,1719943330111,478.5,0.00010959,2]
[330919833,1719943340619,455.72,0.00010959,2]
[330919834,1719943340727,517.32153292,0.00013283,2]
[330919835,1719943344915,208.37564863,0.00013283,2]
[330919836,1719943351626,427.24,0.00010959,2]